bitfinex-derivatives/quotes_SOLF0:USTF0_20251117
["timestamp","ask_amount","ask_price","bid_price","bid_amount"]
[1763387620338,0.05292784,137.82,137.76,2.03003734]
[1763387621541,26.88095095,137.82,137.69,3.22]
[1763387621746,12.70244394,137.87,137.69,3.22]
[1763387621747,0.04754985,137.77,137.69,3.22]
[1763387621932,0.04849768,137.74,137.64,3.22]
[1763387622132,0.0462376,137.7,137.64,3.22]
[1763387622336,0.05095786,137.68,137.64,3.22]
[1763387622645,0.00124097,137.67,137.64,3.22]
[1763387622847,4.82067013,137.76,137.64,3.22]
[1763387623151,4.82067013,137.77,137.65,3.22]
[1763387623346,4.82067013,137.78,137.65,3.22]
[1763387623547,5.15802311,137.81,137.65,3.22]
[1763387623739,0.05424793,137.74,137.72,0.04659222]
[1763387623940,0.05199957,137.74,137.72,0.0468525]
[1763387625747,0.05199957,137.74,137.64,3.22]
[1763387625948,11.3571563,137.77,137.64,3.22]
[1763387626252,4.82067013,137.76,137.64,3.22]
[1763387626435,9.97869324,137.77,137.64,3.22]
[1763387626636,5.15802311,137.77,137.64,3.22]
[1763387626840,0.0558034,137.72,137.64,3.22]
[1763387627135,0.0558034,137.72,137.66,3.22]
[1763387627448,0.04857327,137.7,137.66,3.22]
[1763387627643,0.04728767,137.69,137.66,3.22]
[1763387627843,0.04639869,137.69,137.66,3.22]
[1763387628245,0.04639869,137.69,137.62,3.22]
[1763387628549,9.97869324,137.77,137.62,3.22]
[1763387628745,5.15802311,137.77,137.66,3.22]
[1763387629344,4.82067013,137.79,137.69,3.22]
[1763387629547,4.82067013,137.79,137.63,5.15802311]
[1763387629548,5.15802311,137.84,137.74,3.22]
[1763387630141,5.15802311,137.81,137.68,3.22]
[1763387630436,5.15802311,137.81,137.73,0.05305705]
[1763387630437,0.05342862,137.76,137.73,0.05305705]
[1763387631948,0.05342862,137.76,137.64,3.22]
[1763387632248,5.15802311,137.75,137.64,3.22]
[1763387632846,0.04861111,137.71,137.68,0.04803836]
[1763387633251,0.04861111,137.71,137.68,3.26803836]
[1763387634455,0.04861111,137.71,137.68,0.04803836]
[1763387635147,0.04861111,137.71,137.68,3.26803836]
[1763387637157,0.04861111,137.71,137.68,9.81053836]
[1763387637354,4.82180833,137.78,137.69,3.21]
[1763387637748,21.67,137.77,137.63,3.21]
[1763387638052,56.81802311,137.79,137.63,3.21]
[1763387638053,4.82180833,137.76,137.63,3.21]
[1763387638356,0.0528374,137.71,137.69,3.21]
[1763387638549,4.82180833,137.78,137.69,3.21]
[1763387638955,0.04599324,137.75,137.72,0.05285659]
[1763387639256,0.04599324,137.75,137.72,3.26285659]
[1763387639652,4.82180833,137.81,137.72,3.26285659]
[1763387639955,27.3,137.82,137.72,3.21]
[1763387640257,27.3,137.82,137.73,3.21]
[1763387640448,5.15802311,137.8,137.66,3.21]
[1763387640664,0.05349967,137.74,137.72,0.05417307]
[1763387640851,0.04870175,137.74,137.72,0.05417307]
[1763387641045,0.04870175,137.74,137.65,3.21]
[1763387641247,4.88082839,137.75,137.65,3.21]
[1763387641550,5.15802311,137.76,137.65,3.21]
[1763387641759,37.90798469,137.76,137.65,3.21]
[1763387642060,32.74996158,137.75,137.65,3.21]
[1763387642258,0.04851461,137.72,137.69,0.0520271]
[1763387644353,0.04851461,137.72,137.69,3.2620271]
[1763387644558,11.3571563,137.81,137.7,3.21]
[1763387644758,11.3571563,137.81,137.61,13.0912]
[1763387644759,4.88847799,137.81,137.71,3.21]
[1763387644951,4.88847799,137.81,137.74,3.21]
[1763387645151,6.19913319,137.85,137.74,3.21]
[1763387645360,5.15802311,137.86,137.74,3.21]
[1763387645361,6.19913319,137.84,137.74,3.21]
[1763387645560,0.05346457,137.8,137.78,0.04979623]
[1763387645762,0.04936078,137.8,137.78,0.04979623]
[1763387646064,0.04936078,137.8,137.78,3.25979623]
[1763387646456,4.89101756,137.84,137.78,3.25979623]
[1763387646666,4.89101756,137.85,137.78,3.25979623]
[1763387646865,4.89101756,137.86,137.78,3.21]
[1763387647064,6.19913319,137.88,137.78,3.21]
[1763387647455,0.04725094,137.84,137.82,0.05417132]
[1763387647661,0.04725094,137.84,137.82,0.05113074]
[1763387647662,0.04769933,137.84,137.82,0.05113074]
[1763387649070,6.61802311,137.83,137.74,3.21]
[1763387649261,6.32664065,137.81,137.74,3.21]
[1763387649859,0.05328503,137.79,137.77,3.21]
[1763387650062,4.89101756,137.83,137.77,3.21]
[1763387650261,6.32664065,137.85,137.77,3.21]
[1763387650667,6.32664065,137.84,137.72,3.21]
[1763387651061,0.04674289,137.79,137.77,3.26265539]
[1763387651363,0.0478706,137.79,137.77,3.26265539]
[1763387652067,4.89101756,137.86,137.78,3.21]
[1763387652270,6.32664065,137.85,137.78,3.21]
[1763387652454,11.21765821,137.86,137.78,3.21]
[1763387652659,6.32664065,137.86,137.78,3.21]
[1763387652856,0.04740054,137.83,137.81,0.05039662]
[1763387653065,6.37998518,137.83,137.68,5.15802311]
[1763387653266,6.32664065,137.82,137.71,3.21]
[1763387653465,11.21765821,137.83,137.71,3.21]
[1763387653768,6.32664065,137.83,137.71,3.21]
[1763387653967,11.21765821,137.83,137.72,3.21]
[1763387654169,0.05295152,137.79,137.76,0.05043114]
[1763387654369,0.05295152,137.79,137.76,3.26043114]
[1763387654962,0.05295152,137.79,137.76,0.05043114]
[1763387655364,12.94466376,137.78,137.68,3.21]
[1763387655561,11.21765821,137.77,137.68,3.21]
[1763387655867,6.32664065,137.74,137.62,3.21]
[1763387656173,6.32664065,137.74,137.63,3.21]
[1763387656475,8.45312102,137.76,137.67,3.2611445]
[1763387656476,0.00467943,137.7,137.67,3.2611445]
[1763387656661,11.21765821,137.79,137.68,3.21]
[1763387656866,4.89101756,137.78,137.69,3.21]
[1763387657066,4.89101756,137.8,137.69,3.21]
[1763387657272,6.32664065,137.8,137.69,3.21]
[1763387657573,0.05361334,137.76,137.73,0.04946546]
[1763387657768,0.04738236,137.76,137.73,3.28506269]
[1763387658173,0.04738236,137.76,137.73,0.05506269]
[1763387658472,0.04738236,137.76,137.73,3.28506269]
[1763387658966,0.04738236,137.76,137.73,0.05506269]
[1763387659570,0.04738236,137.76,137.73,3.28506269]
[1763387660076,0.04738236,137.76,137.73,0.05506269]
[1763387660469,0.04738236,137.76,137.73,3.28506269]
[1763387661471,4.89101756,137.81,137.74,3.23]
[1763387661877,86.97312102,137.86,137.68,101.7737]
[1763387661878,4.89101756,137.83,137.8,3.23]
[1763387662081,4.89101756,137.85,137.8,3.23]
[1763387662268,4.89101756,137.86,137.8,3.23]
[1763387662462,0.0466151,137.84,137.82,0.04890721]
[1763387662667,6.32664065,137.87,137.82,3.27890721]
[1763387662862,0.05012496,137.84,137.82,3.27890721]
[1763387663673,6.32664065,137.9,137.82,3.27890721]
[1763387663971,26.96802311,137.94,137.82,3.27890721]
[1763387663972,11.21765821,137.91,137.82,3.27890721]
[1763387664184,11.21765821,137.91,137.79,5.15802311]
[1763387664185,11.21765821,137.92,137.84,3.23]
[1763387664366,4.89101756,137.91,137.84,3.23]
[1763387664665,6.32664065,137.97,137.9,3.23]
[1763387665068,6.32664065,137.97,137.84,3.23]
[1763387665267,6.32664065,137.93,137.84,3.23]
[1763387665574,6.32664065,137.92,137.79,3.23]
[1763387665882,0.05017944,137.87,137.84,0.05225129]
[1763387666671,11.48466376,137.86,137.75,3.23]
[1763387666981,0.05017944,137.87,137.75,3.23]
[1763387666982,6.32664065,137.83,137.75,3.23]
[1763387667374,6.32664065,137.82,137.69,3.16]
[1763387667575,6.32664065,137.8,137.69,3.16]
[1763387667878,0.04733876,137.76,137.73,0.05006616]
[1763387668074,0.04733876,137.76,137.73,3.21006616]
[1763387668272,0.04733876,137.76,137.73,0.05006616]
[1763387670470,0.04733876,137.76,137.73,3.21006616]
[1763387670877,6.32664065,137.82,137.74,1.46]
[1763387671077,6.32664065,137.85,137.77,3.16]
[1763387671282,6.32664065,137.87,137.77,3.16]
[1763387671479,6.32664065,137.86,137.77,3.16]
[1763387671675,6.32664065,137.87,137.77,3.16]
[1763387671877,0.0495274,137.83,137.81,0.04658256]
[1763387674088,0.0495274,137.83,137.73,3.16]
[1763387674274,6.32664065,137.84,137.73,3.16]
[1763387674478,6.32664065,137.84,137.74,3.16]
[1763387674980,0.05456753,137.8,137.78,0.05563047]
[1763387680378,0.05456753,137.8,137.7,3.16]
[1763387680379,6.38120818,137.8,137.7,3.16]
[1763387680583,6.32664065,137.78,137.7,3.16]
[1763387681394,0.04901667,137.75,137.73,0.05167512]
[1763387682286,8.50213769,137.75,137.61,3.16]
[1763387682486,6.3534667,137.7,137.61,3.16]
[1763387682685,5.05214737,137.75,137.61,3.16]
[1763387682686,11.40561407,137.71,137.61,3.16]
[1763387682886,11.40561407,137.7,137.61,3.16]
[1763387683086,5.05214737,137.69,137.61,3.16]
[1763387683288,0.04899107,137.66,137.64,3.21427226]
[1763387683487,0.05362548,137.66,137.64,3.20992678]
[1763387684901,0.05362548,137.66,137.64,0.04992678]
[1763387686202,0.05362548,137.66,137.64,3.20992678]
[1763387686704,5.05214737,137.72,137.66,3.16]
[1763387686903,5.05214737,137.75,137.66,3.16]
[1763387687208,5.05214737,137.75,137.69,3.16]
[1763387687400,6.3534667,137.78,137.69,3.16]
[1763387687596,8.62362816,137.81,137.72,0.04990124]
[1763387687597,0.04997282,137.75,137.72,0.04990124]
[1763387687798,6.3534667,137.74,137.72,0.04872256]
[1763387687996,6.39999469,137.75,137.72,0.04872256]
[1763387688695,0.04652799,137.75,137.72,0.04872256]
[1763387688899,0.04652799,137.75,137.72,3.20872256]
[1763387689600,0.04652799,137.75,137.72,0.04872256]
[1763387691106,6.39999469,137.75,137.72,0.04872256]
[1763387692104,0.45127744,137.7,137.68,3.16]
[1763387692406,6.3534667,137.75,137.68,3.16]
[1763387693300,0.0494856,137.73,137.7,3.21300595]
[1763387693507,0.05154548,137.73,137.7,3.21256229]
[1763387694005,0.05154548,137.73,137.7,0.05256229]
[1763387694207,6.40501218,137.73,137.7,0.05256229]
[1763387696103,0.05154548,137.73,137.7,3.21256229]
[1763387696598,0.05154548,137.73,137.7,0.05256229]
[1763387696997,0.05154548,137.73,137.66,3.16]
[1763387697602,6.40501218,137.73,137.66,3.16]
[1763387697811,6.40501218,137.73,137.63,3.12]
[1763387698103,0.05387316,137.69,137.67,0.04973156]
[1763387700297,0.05387316,137.69,137.67,2.66973156]
[1763387700500,0.05387316,137.69,137.56,8.62362816]
[1763387700709,6.3534667,137.72,137.56,8.62362816]
[1763387700911,6.3534667,137.69,137.53,8.62362816]
[1763387701205,0.04916377,137.62,137.6,0.04947142]
[1763387701407,6.3534667,137.71,137.54,8.62362816]
[1763387701610,6.3534667,137.71,137.53,8.62362816]
[1763387701611,6.3534667,137.69,137.53,8.62362816]
[1763387701806,6.3534667,137.67,137.53,8.62362816]
[1763387702113,14.97709486,137.63,137.47,2.03003734]
[1763387702309,65.29214737,137.62,137.49,3.12]
[1763387702508,0.04948852,137.56,137.54,0.0459278]
[1763387702710,5.05214737,137.6,137.54,0.0459278]
[1763387703007,0.05145205,137.56,137.54,0.0459278]
[1763387703213,0.05145205,137.56,137.49,3.12]
[1763387703414,0.05145205,137.56,137.47,2.03003734]
[1763387703615,6.3534667,137.58,137.47,2.03003734]
[1763387703813,6.3534667,137.57,137.47,2.03003734]
[1763387704204,0.05525431,137.53,137.51,0.04909431]
[1763387704509,6.3534667,137.61,137.51,3.16909431]
[1763387704714,6.3534667,137.62,137.51,3.12]
[1763387704914,4.98268954,137.63,137.52,3.12]
[1763387705314,4.98268954,137.66,137.52,3.12]
[1763387705515,0.00202245,137.6,137.59,3.12]
[1763387705708,4.98268954,137.67,137.59,3.12]
[1763387705709,6.3534667,137.69,137.59,3.12]
[1763387705911,4.98268954,137.7,137.59,3.12]
[1763387706418,11.33615624,137.71,137.59,3.12]
[1763387706611,0.04609315,137.66,137.64,0.05134723]
[1763387706816,0.05000666,137.66,137.64,0.05134723]
[1763387708516,0.05000666,137.66,137.48,3.12]
[1763387708715,14.97709486,137.65,137.48,3.12]
[1763387708923,11.33615624,137.64,137.48,3.12]
[1763387709112,14.97709486,137.61,137.48,3.12]
[1763387709320,11.33615624,137.6,137.48,3.12]
[1763387709620,0.04754519,137.55,137.53,0.05217669]
[1763387709812,6.3534667,137.56,137.47,2.03003734]
[1763387710426,6.3534667,137.55,137.47,2.03003734]
[1763387710621,77.46,137.54,137.47,2.03003734]
[1763387710819,0.0554596,137.52,137.49,0.04820928]
[1763387712214,0.0554596,137.52,137.49,1.08996266]
[1763387712420,0.0554596,137.52,137.47,2.03003734]
[1763387713226,0.0554596,137.52,137.48,0.04169034]
[1763387714230,0.0554596,137.52,137.48,3.16169034]
[1763387716238,4.97492625,137.59,137.49,3.12]
[1763387716435,4.97492625,137.6,137.49,3.12]
[1763387716636,4.97492625,137.61,137.53,3.12]
[1763387716937,1.21,137.63,137.53,3.12]
[1763387717139,0.05021887,137.59,137.57,0.04700818]
[1763387717338,0.04706361,137.59,137.57,0.04851262]
[1763387717736,1.21,137.57,137.47,5.41003734]
[1763387717947,1.21,137.55,137.47,2.03003734]
[1763387718153,1.21,137.55,137.38,3.38]
[1763387718154,1.21,137.53,137.38,3.38]
[1763387718330,29.32789441,137.49,137.37,4.80496555]
[1763387718540,1.21,137.46,137.37,4.80496555]
[1763387718742,1.21,137.46,137.4,0.04724999]
[1763387718743,1.25640937,137.43,137.4,0.04724999]
[1763387718942,1.21,137.42,137.4,0.04724999]
[1763387719340,1.21,137.41,137.37,4.80496555]
[1763387720344,1.21,137.4,137.37,4.80496555]
[1763387720648,1.21,137.4,137.21,87.28]
[1763387720649,21.81,137.37,137.21,3.38]
[1763387720945,0.04628196,137.3,137.21,3.38]
[1763387721143,0.05466975,137.27,137.21,3.38]
[1763387721342,6.26377553,137.38,137.21,3.38]
[1763387721646,6.26377553,137.38,137.2,8.62362816]
[1763387721647,6.26377553,137.38,137.24,3.38]
[1763387721846,14.88740369,137.37,137.24,3.38]
[1763387722048,11.24165232,137.36,137.19,3.38]
[1763387722345,0.04753957,137.29,137.26,0.05488906]
[1763387722548,0.04829223,137.29,137.26,0.05526717]
[1763387723042,0.04829223,137.29,137.26,3.43526717]
[1763387723344,4.96850147,137.37,137.27,3.38]
[1763387723937,4.96850147,137.37,137.19,3.38]
[1763387724140,0.0489351,137.29,137.27,3.42656137]
[1763387724342,0.05571103,137.29,137.27,3.43587562]
[1763387724547,8.35170071,137.44,137.27,3.43587562]
[1763387724548,6.26377553,137.43,137.29,3.38]
[1763387724847,4.96092942,137.45,137.32,3.38]
[1763387725038,4.96092942,137.47,137.32,3.38]
[1763387725239,4.96092942,137.48,137.34,3.38]
[1763387725635,0.04769999,137.42,137.4,0.05586363]
[1763387725858,0.05069904,137.42,137.4,3.43586363]
[1763387726354,4.96092942,137.5,137.41,3.38]
[1763387726554,11.22470495,137.54,137.41,3.38]
[1763387726850,11.22470495,137.53,137.34,3.38]
[1763387727153,8.62362816,137.51,137.34,3.38]
[1763387727343,8.62362816,137.51,137.42,0.05322931]
[1763387727344,0.04626745,137.45,137.42,0.05322931]
[1763387727645,0.04965007,137.45,137.42,0.0491872]
[1763387728348,0.04965007,137.45,137.42,3.2691872]
[1763387729244,5.18472837,137.54,137.44,3.22]
[1763387730147,0.04982963,137.5,137.48,0.05415872]
[1763387731346,0.04982963,137.5,137.48,3.27415872]
[1763387731748,4.9656796,137.58,137.48,3.27415872]
[1763387732049,4.9656796,137.58,137.48,3.22]
[1763387732256,6.26377553,137.66,137.49,3.22]
[1763387732458,79.14,137.66,137.53,3.22]
[1763387732751,0.048523,137.61,137.58,0.04627304]
[1763387733048,0.048523,137.61,137.59,3.22]
[1763387733347,4.9743637,137.68,137.59,3.22]
[1763387733547,4.9743637,137.69,137.59,3.22]
[1763387734051,10.15909207,137.69,137.55,3.22]
[1763387734346,0.04821172,137.63,137.61,0.04752553]
[1763387734551,16.4228676,137.69,137.61,0.04752553]
[1763387734743,6.26377553,137.67,137.61,0.04752553]
[1763387734944,6.26377553,137.67,137.55,3.22]
[1763387734945,0.04687679,137.65,137.63,0.05196958]
[1763387735142,0.04687679,137.65,137.55,3.22]
[1763387735358,6.26377553,137.67,137.55,3.22]
[1763387735647,6.26377553,137.66,137.55,3.22]
[1763387735851,6.26377553,137.67,137.55,3.22]
[1763387736155,0.04955106,137.62,137.6,0.04825074]
[1763387736840,0.04955106,137.62,137.51,3.22]
[1763387737160,0.04955106,137.62,137.46,3.22]
[1763387737161,6.26377553,137.59,137.46,3.22]
[1763387737349,4.9743637,137.6,137.46,3.22]
[1763387737550,4.9743637,137.6,137.43,13.33396779]
[1763387737551,4.9743637,137.6,137.47,3.22]
[1763387737847,0.05298644,137.55,137.53,3.22]
[1763387738149,0.0479727,137.55,137.53,0.04696192]
[1763387738538,0.0479727,137.55,137.53,3.26696192]
[1763387739146,0.0479727,137.55,137.53,0.04696192]
[1763387740152,4.9743637,137.63,137.54,3.22]
[1763387740350,6.26377553,137.69,137.55,3.22]
[1763387740748,53.24377553,137.71,137.57,3.22]
[1763387740963,1.5,137.72,137.57,3.22]
[1763387741256,0.04879136,137.65,137.63,0.05608351]
[1763387741451,0.05280699,137.65,137.63,0.05269754]
[1763387742052,6.26377553,137.71,137.63,3.27269754]
[1763387742255,6.26377553,137.75,137.65,3.22]
[1763387742462,55.84,137.76,137.65,3.22]
[1763387742648,63.60377553,137.76,137.65,3.22]
[1763387742849,79.2,137.75,137.65,3.22]
[1763387743359,0.05166346,137.71,137.7,3.22]
[1763387743548,0.05576855,137.72,137.7,3.22]
[1763387744251,86.94377553,137.8,137.7,3.22]
[1763387745152,0.05468935,137.76,137.74,3.27360944]
[1763387745359,0.05539305,137.76,137.74,0.04950278]
[1763387745956,1.60539305,137.76,137.7,3.22]
[1763387747053,1.60539305,137.76,137.72,0.05093604]
[1763387747860,0.05539305,137.76,137.72,0.05093604]
[1763387748157,1.60539305,137.76,137.72,0.05093604]
[1763387748554,0.05539305,137.76,137.72,0.05093604]
[1763387748758,79.15539305,137.76,137.72,3.27093604]
[1763387749354,0.05539305,137.76,137.72,3.27093604]
[1763387749750,6.26377553,137.85,137.72,4.73093604]
[1763387750051,8.35170071,137.87,137.74,3.22]
[1763387750052,64.36,137.84,137.74,3.22]
[1763387750770,0.04712324,137.8,137.78,0.05206796]
[1763387751065,0.04712324,137.8,137.74,3.22]
[1763387751066,1.55,137.79,137.7,3.22]
[1763387751365,1.55,137.79,137.66,3.22]
[1763387751662,79.1,137.78,137.66,3.22]
[1763387752066,0.04796175,137.73,137.71,0.04957592]
[1763387752256,0.04595581,137.73,137.71,0.04957592]
[1763387752453,0.04595581,137.73,137.71,3.26957592]
[1763387752860,1.55,137.81,137.71,3.26957592]
[1763387753061,79.1,137.8,137.71,3.22]
[1763387753255,79.1,137.85,137.71,3.22]
[1763387753462,79.1,137.85,137.59,123.651]
[1763387753463,6.49784288,137.84,137.72,3.22]
[1763387753667,1.55,137.83,137.72,3.22]
[1763387753969,0.04615832,137.79,137.76,0.05348835]
[1763387754559,1.59615832,137.79,137.76,0.05348835]
[1763387755160,0.04615832,137.79,137.76,0.05348835]
[1763387755960,1.59615832,137.79,137.76,0.05348835]
[1763387758061,0.44651165,137.74,137.72,3.22]
[1763387758260,1.55,137.79,137.72,3.22]
[1763387759161,0.04989024,137.77,137.74,0.05227553]
[1763387760063,0.04989024,137.77,137.74,3.43227553]
[1763387760266,1.54,137.88,137.74,4.89227553]
[1763387760463,1.54,137.88,137.77,3.38]
[1763387760464,6.70176513,137.88,137.77,3.38]
[1763387760663,5.16176513,137.9,137.77,3.38]
[1763387760869,78.96,137.89,137.77,3.38]
[1763387761062,80.5,137.89,137.79,3.38]
[1763387761365,0.00225916,137.85,137.84,3.38]
[1763387761668,31.44,137.94,137.84,3.38]
[1763387762068,33.04,137.94,137.84,3.38]
[1763387762457,0.04633547,137.9,137.89,3.38]
[1763387762659,0.05214231,137.91,137.88,0.05117665]
[1763387762864,0.05214231,137.91,137.88,3.43117665]
[1763387763057,1.65214231,137.91,137.88,0.05117665]
[1763387763459,0.05214231,137.91,137.88,0.05117665]
[1763387763664,80.59214231,137.91,137.88,0.05117665]
[1763387763961,78.99214231,137.91,137.88,0.05117665]
[1763387764166,78.99214231,137.91,137.88,3.43117665]
[1763387764361,0.05214231,137.91,137.88,3.43117665]
[1763387764574,75.88,137.99,137.89,3.38]
[1763387764864,74.28,137.99,137.89,3.38]
[1763387765069,1.6,138.03,137.9,3.38]
[1763387765273,78.96,138.02,137.9,3.38]
[1763387765561,78.96,138.03,137.95,3.43244209]
[1763387765964,78.94,138.03,137.95,3.43244209]
[1763387766665,0.04817329,138.0,137.95,3.43244209]
[1763387766860,0.04817329,138.0,137.97,3.38]
[1763387767065,78.94,138.04,137.97,3.38]
[1763387767269,78.92,138.06,137.97,3.38]
[1763387767466,1.65,138.08,137.97,3.38]
[1763387767661,1.69,138.05,137.93,3.38]
[1763387768061,0.05550089,138.0,137.98,0.04987589]
[1763387768268,1.69,137.98,137.88,3.38]
[1763387768472,1.69,137.98,137.77,3.38]
[1763387768473,1.69,137.96,137.77,3.38]
[1763387768770,1.69,137.93,137.79,3.38]
[1763387769273,0.04699679,137.87,137.85,0.05325942]
[1763387769474,0.05131221,137.87,137.85,0.05325942]
[1763387770558,1.74131221,137.87,137.85,0.05325942]
[1763387770774,0.05131221,137.87,137.85,0.05325942]
[1763387771266,0.05131221,137.87,137.85,3.43325942]
[1763387771477,0.05131221,137.87,137.85,0.05325942]
[1763387772268,0.05131221,137.87,137.85,3.43325942]
[1763387772969,2.95247052,137.96,137.86,4.84]
[1763387773175,1.69,138.0,137.89,3.38]
[1763387773671,1.69,137.98,137.85,3.38]
[1763387773871,0.05386233,137.93,137.9,0.0494308]
[1763387774073,0.04832022,137.93,137.9,3.4314264]
[1763387774472,0.04832022,137.93,137.9,0.0514264]
[1763387774873,1.73832022,137.93,137.9,0.0514264]
[1763387775273,0.04832022,137.93,137.9,0.0514264]
[1763387775778,1.73832022,137.93,137.9,0.0514264]
[1763387775969,0.04832022,137.93,137.9,0.0514264]
[1763387776169,0.04832022,137.93,137.9,3.4314264]
[1763387776572,0.04832022,137.93,137.9,0.0514264]
[1763387776978,6.26377553,138.01,137.9,3.4314264]
[1763387777171,4.96963373,138.02,137.9,3.38]
[1763387777477,1.69,138.03,137.9,3.38]
[1763387777674,1.69,138.02,137.9,3.38]
[1763387777872,1.69,138.01,137.9,3.38]
[1763387778176,1.69,138.01,137.94,3.28541764]
[1763387778177,0.04784576,137.97,137.94,3.28541764]
[1763387778378,0.04955891,137.97,137.94,3.27682737]
[1763387779277,1.73955891,137.97,137.94,0.04682737]
[1763387779785,1.69,137.96,137.85,3.23]
[1763387780182,80.71,137.96,137.85,3.23]
[1763387780781,0.05357053,137.92,137.89,0.04703209]
[1763387781177,0.05357053,137.92,137.89,3.27703209]
[1763387782375,0.05357053,137.92,137.89,0.04703209]
[1763387782675,0.05357053,137.92,137.89,3.27703209]
[1763387783073,0.05357053,137.92,137.89,0.04703209]
[1763387783278,1.74357053,137.92,137.89,0.04703209]
[1763387783979,1.69,137.91,137.81,3.23]
[1763387784188,1.69,137.89,137.81,3.23]
[1763387784371,6.26377553,137.9,137.81,3.23]
[1763387784574,83.96021815,137.91,137.81,3.23]
[1763387784786,1.69,137.88,137.77,3.23]
[1763387785282,0.05371301,137.84,137.81,0.05237866]
[1763387785780,1.74371301,137.84,137.81,0.05237866]
[1763387786779,1.69,137.83,137.81,0.05237866]
[1763387787477,11.31770669,137.84,137.57,3.1]
[1763387787478,1.7,137.8,137.57,3.1]
[1763387787673,1.7,137.74,137.6,3.1]
[1763387787883,8.02302692,137.74,137.6,3.1]
[1763387788093,55.32,137.73,137.6,3.1]
[1763387788390,55.32,137.73,137.65,0.04648877]
[1763387788391,0.0535386,137.68,137.65,0.04648877]
[1763387788574,1.7,137.71,137.57,3.1]
[1763387788575,1.7,137.67,137.57,3.1]
[1763387788887,0.0510789,137.63,137.61,0.04639591]
[1763387789184,0.04721678,137.63,137.61,0.04639591]
[1763387789687,5.21948491,137.63,137.61,0.04639591]
[1763387790187,10.21970306,137.63,137.61,0.04639591]
[1763387790389,11.91970306,137.63,137.61,0.04639591]
[1763387790690,11.91970306,137.63,137.53,3.1]
[1763387790882,15.35176315,137.63,137.53,3.1]
[1763387791082,5.00021815,137.62,137.53,3.1]
[1763387791387,1.7,137.61,137.53,3.1]
[1763387791587,0.04823675,137.58,137.56,0.05159514]
[1763387792485,1.74823675,137.58,137.56,0.05159514]
[1763387794289,0.04823675,137.58,137.56,0.05159514]
[1763387794495,0.04823675,137.58,137.56,3.15159514]
[1763387794785,5.00021815,137.65,137.56,3.15159514]
[1763387794991,73.78021815,137.67,137.56,3.1]
[1763387795193,6.70021815,137.66,137.56,3.1]
[1763387795385,1.7,137.65,137.56,3.1]
[1763387795581,0.05242371,137.62,137.59,0.05201575]
[1763387795792,1.7,137.62,137.52,3.1]
[1763387795992,0.05483841,137.58,137.56,0.05564505]
[1763387796380,0.05483841,137.58,137.56,3.15564505]
[1763387797182,0.05483841,137.58,137.56,0.05564505]
[1763387797383,1.75483841,137.58,137.48,3.1]
[1763387797593,10.351545,137.58,137.48,3.1]
[1763387797890,1.7,137.56,137.44,3.1]
[1763387798488,0.05482152,137.51,137.49,0.05564046]
[1763387798678,0.05407151,137.51,137.49,0.05564046]
[1763387800188,1.75407151,137.51,137.49,0.05564046]
[1763387800693,1.7,137.5,137.4,3.1]
[1763387801391,8.651545,137.53,137.4,3.1]
[1763387801592,0.05175423,137.48,137.45,0.05584895]
[1763387801780,0.05175423,137.48,137.45,3.15584895]
[1763387802599,1.7,137.58,137.46,3.1]
[1763387803294,31.7,137.58,137.46,3.1]
[1763387803693,0.04970673,137.53,137.51,0.04620103]
[1763387803895,0.04814146,137.53,137.51,0.04620103]
[1763387805888,0.04814146,137.53,137.51,3.14620103]
[1763387806389,8.651545,137.6,137.51,3.14620103]
[1763387806587,8.651545,137.6,137.43,8.651545]
[1763387806588,1.7,137.62,137.52,3.1]
[1763387807582,0.05403817,137.58,137.56,0.04960051]
[1763387807982,1.75403817,137.58,137.56,0.04960051]
[1763387808187,1.7,137.57,137.49,3.1]
[1763387809195,0.0467065,137.54,137.52,3.15415595]
[1763387809497,0.05482651,137.54,137.52,3.14792658]
[1763387811396,1.7,137.61,137.52,3.14792658]
[1763387811595,79.44,137.64,137.52,3.1]